[Event "*** Titled Tuesday Blitz"]
[Site "Chess.com"]
[Date "2020.05.19"]
[Round "7"]
[White "Chessmasterzt"]
[Black "sari07"]
[Result "0-1"]
[WhiteElo "2583"]
[BlackElo "2464"]
[TimeControl "180+1"]
[EndTime "13:20:26 PDT"]
[Termination "sari07 won by checkmate"]

1. d4 {[%clk 0:03:00.9]} 1... d5 {[%clk 0:02:59.9]} 2. c4 {[%clk 0:02:59.4]}
2... c6 {[%clk 0:03:00.3]} 3. Nf3 {[%clk 0:02:59.2]} 3... Nf6 {[%clk 0:03:00.6]}
4. Nbd2 {[%clk 0:02:57.6]} 4... Bf5 {[%clk 0:02:57.2]} 5. Nh4 {[%clk 0:02:48.7]}
5... Be4 {[%clk 0:02:49.4]} 6. e3 {[%clk 0:02:37.6]} 6... e6 {[%clk 0:02:39.5]}
7. f3 {[%clk 0:02:37.2]} 7... Bg6 {[%clk 0:02:36.7]} 8. Nxg6 {[%clk 0:02:29.5]}
8... hxg6 {[%clk 0:02:37.6]} 9. Be2 {[%clk 0:02:25.6]} 9... Bd6 {[%clk
0:02:32.2]} 10. f4 {[%clk 0:02:26]} 10... Nbd7 {[%clk 0:02:29.3]} 11. c5 {[%clk
0:02:05.4]} 11... Bc7 {[%clk 0:02:24]} 12. b4 {[%clk 0:02:05.8]} 12... g5 {[%clk
0:02:16.7]} 13. g3 {[%clk 0:01:52]} 13... gxf4 {[%clk 0:02:10.4]} 14. exf4
{[%clk 0:01:52.9]} 14... g5 {[%clk 0:02:05.6]} 15. fxg5 {[%clk 0:01:46.2]} 15...
Bxg3+ {[%clk 0:02:03.5]} 16. Kf1 {[%clk 0:01:46.6]} 16... Ne4 {[%clk 0:01:46.7]}
17. Nxe4 {[%clk 0:01:45.2]} 17... dxe4 {[%clk 0:01:47.6]} 18. Kg2 {[%clk
0:01:44.2]} 18... Bh4 {[%clk 0:01:44.3]} 19. Qc2 {[%clk 0:01:07.2]} 19... Bxg5
{[%clk 0:01:30.6]} 20. Qxe4 {[%clk 0:01:06.5]} 20... Bxc1 {[%clk 0:01:25.6]} 21.
Raxc1 {[%clk 0:01:07.4]} 21... Qg5+ {[%clk 0:01:25.5]} 22. Qg4 {[%clk
0:01:07.7]} 22... Qd5+ {[%clk 0:01:13.8]} 23. Kf2 {[%clk 0:00:55.8]} 23... Nf6
{[%clk 0:00:52]} 24. Qf4 {[%clk 0:00:46.5]} 24... Ne4+ {[%clk 0:00:43]} 25. Ke3
{[%clk 0:00:41.8]} 25... Rh3+ {[%clk 0:00:36.3]} 26. Bf3 {[%clk 0:00:41.6]}
26... f5 {[%clk 0:00:17.8]} 27. Qe5 {[%clk 0:00:25.3]} 27... Qxa2 {[%clk
0:00:17.1]} 28. Kd3 {[%clk 0:00:05.4]} 28... Qb3+ {[%clk 0:00:12.8]} 29. Ke2
{[%clk 0:00:04.4]} 29... Qxf3+ {[%clk 0:00:11.6]} 30. Ke1 {[%clk 0:00:04.7]}
30... Qe3+ {[%clk 0:00:11.4]} 31. Kf1 {[%clk 0:00:05.2]} 31... Qf2# {[%clk
0:00:11.6]} 0-1

[Event "*** Titled Tuesday Blitz"]
[Site "Chess.com"]
[Date "2020.05.19"]
[Round "7"]
[White "ChessQueen"]
[Black "alertakobra"]
[Result "1-0"]
[WhiteElo "2610"]
[BlackElo "2298"]
[TimeControl "180+1"]
[EndTime "13:20:27 PDT"]
[Termination "ChessQueen won on time"]

1. e4 {[%clk 0:03:00.9]} 1... e5 {[%clk 0:02:59.2]} 2. Nf3 {[%clk 0:02:59.8]}
2... Nc6 {[%clk 0:02:59.8]} 3. Bb5 {[%clk 0:02:58.7]} 3... a6 {[%clk 0:02:59.6]}
4. Ba4 {[%clk 0:02:58.1]} 4... Nf6 {[%clk 0:02:59.9]} 5. d4 {[%clk 0:02:58.1]}
5... Nxd4 {[%clk 0:02:33.5]} 6. Nxd4 {[%clk 0:02:48.7]} 6... exd4 {[%clk
0:02:34.4]} 7. e5 {[%clk 0:02:48.7]} 7... Ne4 {[%clk 0:02:32.4]} 8. Qxd4 {[%clk
0:02:47]} 8... Nc5 {[%clk 0:02:32.9]} 9. Bb3 {[%clk 0:02:45]} 9... Nxb3 {[%clk
0:02:31]} 10. axb3 {[%clk 0:02:42.8]} 10... d5 {[%clk 0:02:30.1]} 11. Nc3 {[%clk
0:02:26.5]} 11... Be6 {[%clk 0:02:27.7]} 12. O-O {[%clk 0:02:24.2]} 12... Be7
{[%clk 0:02:23.5]} 13. f4 {[%clk 0:02:13.9]} 13... Qd7 {[%clk 0:02:09]} 14. Qd3
{[%clk 0:02:01.8]} 14... g6 {[%clk 0:01:44.5]} 15. Be3 {[%clk 0:01:56.2]} 15...
c5 {[%clk 0:01:24.4]} 16. Ne2 {[%clk 0:01:52.9]} 16... Bf5 {[%clk 0:01:21.6]}
17. Qd2 {[%clk 0:01:46.6]} 17... d4 {[%clk 0:01:18.2]} 18. Bf2 {[%clk
0:01:45.9]} 18... O-O {[%clk 0:01:11.1]} 19. Ng3 {[%clk 0:01:42.6]} 19... Rac8
{[%clk 0:01:06.3]} 20. h3 {[%clk 0:01:39.4]} 20... c4 {[%clk 0:00:59.7]} 21.
Bxd4 {[%clk 0:01:13.6]} 21... cxb3 {[%clk 0:00:56.2]} 22. c3 {[%clk 0:01:10.6]}
22... h5 {[%clk 0:00:35.8]} 23. Qf2 {[%clk 0:01:07.4]} 23... Bh4 {[%clk
0:00:33.8]} 24. Qf3 {[%clk 0:01:03.2]} 24... Bxg3 {[%clk 0:00:25]} 25. Qxg3
{[%clk 0:01:03.4]} 25... Qe6 {[%clk 0:00:22.8]} 26. Qg5 {[%clk 0:00:56.5]} 26...
Kh7 {[%clk 0:00:22.4]} 27. Kf2 {[%clk 0:00:52.5]} 27... Rfd8 {[%clk 0:00:21.9]}
28. g4 {[%clk 0:00:51.4]} 28... hxg4 {[%clk 0:00:21.5]} 29. hxg4 {[%clk
0:00:51.9]} 29... Bxg4 {[%clk 0:00:21.6]} 30. Rh1+ {[%clk 0:00:52.2]} 30... Bh5
{[%clk 0:00:21.2]} 31. Rxh5+ {[%clk 0:00:51]} 31... gxh5 {[%clk 0:00:21.5]} 32.
Qxh5+ {[%clk 0:00:45.5]} 32... Kg8 {[%clk 0:00:19.3]} 33. Rg1+ {[%clk
0:00:43.4]} 33... Kf8 {[%clk 0:00:19.4]} 34. f5 {[%clk 0:00:39.7]} 34... Qc6
{[%clk 0:00:17.9]} 35. e6 {[%clk 0:00:30.8]} 35... fxe6 {[%clk 0:00:15.8]} 36.
Qh8+ {[%clk 0:00:27.6]} 36... Ke7 {[%clk 0:00:16.1]} 37. Qf6+ {[%clk 0:00:25.8]}
37... Kd7 {[%clk 0:00:15.6]} 38. Rg7+ {[%clk 0:00:23.7]} 1-0

[Event "*** Titled Tuesday Blitz"]
[Site "Chess.com"]
[Date "2020.05.19"]
[Round "7"]
[White "chessablanca"]
[Black "ChEsper99"]
[Result "1-0"]
[WhiteElo "2453"]
[BlackElo "2060"]
[TimeControl "180+1"]
[EndTime "13:20:27 PDT"]
[Termination "chessablanca won on time"]

1. g3 {[%clk 0:03:00.9]} 1... Nf6 {[%clk 0:02:57.6]} 2. Bg2 {[%clk 0:03:01.1]}
2... g6 {[%clk 0:02:57]} 3. b3 {[%clk 0:03:00.8]} 3... Bg7 {[%clk 0:02:56.9]} 4.
Bb2 {[%clk 0:03:01.4]} 4... O-O {[%clk 0:02:57.8]} 5. Nf3 {[%clk 0:02:59.4]}
5... d6 {[%clk 0:02:57.5]} 6. O-O {[%clk 0:02:59.7]} 6... c5 {[%clk 0:02:57.7]}
7. d4 {[%clk 0:02:59.8]} 7... cxd4 {[%clk 0:02:57.4]} 8. Nxd4 {[%clk 0:03:00.7]}
8... a6 {[%clk 0:02:50.4]} 9. Nd2 {[%clk 0:02:59.4]} 9... Qc7 {[%clk 0:02:48]}
10. c4 {[%clk 0:02:58.3]} 10... Nc6 {[%clk 0:02:46]} 11. a3 {[%clk 0:02:47.6]}
11... Rb8 {[%clk 0:02:40.6]} 12. Rc1 {[%clk 0:02:44.4]} 12... Rd8 {[%clk
0:02:38]} 13. e4 {[%clk 0:02:43.4]} 13... Bg4 {[%clk 0:02:22.1]} 14. Qc2 {[%clk
0:02:37.6]} 14... Rdc8 {[%clk 0:02:06.3]} 15. h3 {[%clk 0:02:34.9]} 15... Bd7
{[%clk 0:02:00.8]} 16. f4 {[%clk 0:02:29.5]} 16... e5 {[%clk 0:01:55.2]} 17.
fxe5 {[%clk 0:02:23.4]} 17... dxe5 {[%clk 0:01:52.7]} 18. N4f3 {[%clk
0:02:23.4]} 18... Re8 {[%clk 0:01:50]} 19. Rfd1 {[%clk 0:02:20.4]} 19... Nh5
{[%clk 0:01:49]} 20. Nf1 {[%clk 0:02:20]} 20... Rbd8 {[%clk 0:01:35.7]} 21. Kh2
{[%clk 0:02:18.7]} 21... Nd4 {[%clk 0:01:34]} 22. Nxd4 {[%clk 0:02:12]} 22...
exd4 {[%clk 0:01:33.4]} 23. Bxd4 {[%clk 0:02:01.9]} 23... Bc6 {[%clk 0:01:04.1]}
24. Bxg7 {[%clk 0:01:49.9]} 24... Kxg7 {[%clk 0:01:05]} 25. Rxd8 {[%clk
0:01:41]} 25... Rxd8 {[%clk 0:01:03.5]} 26. Qc3+ {[%clk 0:01:40.8]} 26... Kg8
{[%clk 0:01:03]} 27. Re1 {[%clk 0:01:40.5]} 27... Qe7 {[%clk 0:00:50.3]} 28. b4
{[%clk 0:01:37.6]} 28... b5 {[%clk 0:00:42]} 29. c5 {[%clk 0:01:32.5]} 29... Rd7
{[%clk 0:00:33.5]} 30. Ne3 {[%clk 0:01:17.1]} 30... Qd8 {[%clk 0:00:27.3]} 31.
Nd5 {[%clk 0:01:09.4]} 31... f5 {[%clk 0:00:11.4]} 32. Nb6 {[%clk 0:00:27.5]}
32... Rd3 {[%clk 0:00:07.9]} 33. Qe5 {[%clk 0:00:23.2]} 33... Rxg3 {[%clk
0:00:07.1]} 34. Qe6+ {[%clk 0:00:19.6]} 34... Kg7 {[%clk 0:00:05.9]} 35. Qxc6
{[%clk 0:00:19.3]} 35... Qd2 {[%clk 0:00:02.3]} 36. Qd7+ {[%clk 0:00:18.2]}
36... Kh6 {[%clk 0:00:02.2]} 37. Qxd2+ {[%clk 0:00:17.7]} 1-0

[Event "*** Titled Tuesday Blitz"]
[Site "Chess.com"]
[Date "2020.05.19"]
[Round "7"]
[White "Mbneu"]
[Black "CroissantNeuf"]
[Result "0-1"]
[WhiteElo "2228"]
[BlackElo "2361"]
[TimeControl "180+1"]
[EndTime "13:20:27 PDT"]
[Termination "CroissantNeuf won by resignation"]

1. d4 {[%clk 0:02:58.2]} 1... Nf6 {[%clk 0:02:59.3]} 2. c4 {[%clk 0:02:58.8]}
2... e6 {[%clk 0:02:59.2]} 3. Nc3 {[%clk 0:02:59.3]} 3... Bb4 {[%clk 0:02:58.8]}
4. Bg5 {[%clk 0:02:59.8]} 4... h6 {[%clk 0:02:57.9]} 5. Bh4 {[%clk 0:02:59.5]}
5... c5 {[%clk 0:02:57.7]} 6. d5 {[%clk 0:02:59.7]} 6... exd5 {[%clk 0:02:53.5]}
7. cxd5 {[%clk 0:02:58.5]} 7... d6 {[%clk 0:02:54]} 8. e3 {[%clk 0:02:57.7]}
8... O-O {[%clk 0:02:54.4]} 9. Bd3 {[%clk 0:02:57.1]} 9... Nbd7 {[%clk
0:02:53.6]} 10. Nf3 {[%clk 0:02:55.7]} 10... Re8 {[%clk 0:02:52.6]} 11. O-O
{[%clk 0:02:54.8]} 11... a6 {[%clk 0:02:51.2]} 12. Ne4 {[%clk 0:02:46]} 12...
Rxe4 {[%clk 0:02:40.5]} 13. Bxe4 {[%clk 0:02:42.7]} 13... g5 {[%clk 0:02:41.1]}
14. Nxg5 {[%clk 0:02:32]} 14... hxg5 {[%clk 0:02:41]} 15. Bxg5 {[%clk
0:02:30.6]} 15... Qf8 {[%clk 0:02:36.1]} 16. Bc2 {[%clk 0:02:23.9]} 16... Qg7
{[%clk 0:02:29.7]} 17. h4 {[%clk 0:02:18.1]} 17... Ne5 {[%clk 0:02:24.1]} 18. f4
{[%clk 0:02:15.2]} 18... Neg4 {[%clk 0:02:07.1]} 19. Qf3 {[%clk 0:02:00.1]}
19... c4 {[%clk 0:01:54.2]} 20. e4 {[%clk 0:01:14.9]} 20... Bc5+ {[%clk
0:01:49.8]} 21. Kh1 {[%clk 0:01:13.9]} 21... Ne3 {[%clk 0:00:59.8]} 22. Rf2
{[%clk 0:01:11.5]} 22... Bg4 {[%clk 0:00:55.6]} 23. Bxf6 {[%clk 0:00:59.8]}
23... Qxf6 {[%clk 0:00:46.8]} 24. Qg3 {[%clk 0:00:59.4]} 24... Kg7 {[%clk
0:00:18.7]} 25. e5 {[%clk 0:00:46.9]} 25... Qh6 {[%clk 0:00:18.1]} 26. Bd1
{[%clk 0:00:38.7]} 26... Rh8 {[%clk 0:00:16.5]} 27. Bxg4 {[%clk 0:00:37.5]}
27... Qxh4+ {[%clk 0:00:15.9]} 28. Qxh4 {[%clk 0:00:37.6]} 28... Rxh4+ {[%clk
0:00:16.2]} 29. Bh3 {[%clk 0:00:37.9]} 29... Nxd5 {[%clk 0:00:11.9]} 30. Rf3
{[%clk 0:00:29.2]} 30... Nxf4 {[%clk 0:00:12]} 31. exd6 {[%clk 0:00:24.1]} 31...
Bxd6 {[%clk 0:00:12.1]} 32. Rd1 {[%clk 0:00:23.1]} 32... Be5 {[%clk 0:00:11.5]}
33. Re1 {[%clk 0:00:22.1]} 33... f6 {[%clk 0:00:08.1]} 34. Re4 {[%clk
0:00:21.5]} 34... Kg6 {[%clk 0:00:04.3]} 35. Kg1 {[%clk 0:00:20.7]} 35... Kg5
{[%clk 0:00:04.3]} 36. g3 {[%clk 0:00:19.1]} 36... Nxh3+ {[%clk 0:00:01.5]} 37.
Kg2 {[%clk 0:00:19]} 37... Rxe4 {[%clk 0:00:02.4]} 38. Kxh3 {[%clk 0:00:18.8]}
38... Re2 {[%clk 0:00:02.6]} 0-1

[Event "*** Titled Tuesday Blitz"]
[Site "Chess.com"]
[Date "2020.05.19"]
[Round "7"]
[White "Supernotar"]
[Black "CrushingKings"]
[Result "0-1"]
[WhiteElo "2656"]
[BlackElo "2517"]
[TimeControl "180+1"]
[EndTime "13:20:29 PDT"]
[Termination "CrushingKings won by checkmate"]

1. d4 {[%clk 0:03:00.9]} 1... g6 {[%clk 0:02:56.7]} 2. c4 {[%clk 0:02:57.8]}
2... Bg7 {[%clk 0:02:57.1]} 3. Nc3 {[%clk 0:02:57.7]} 3... c5 {[%clk 0:02:56.9]}
4. Nf3 {[%clk 0:02:57.3]} 4... d6 {[%clk 0:02:56.4]} 5. e3 {[%clk 0:02:53.3]}
5... Nc6 {[%clk 0:02:52.1]} 6. Be2 {[%clk 0:02:53.1]} 6... Nf6 {[%clk
0:02:49.4]} 7. O-O {[%clk 0:02:51.5]} 7... O-O {[%clk 0:02:49.6]} 8. d5 {[%clk
0:02:45.8]} 8... Nb8 {[%clk 0:02:49.2]} 9. e4 {[%clk 0:02:45.3]} 9... Ne8 {[%clk
0:02:49.1]} 10. Qc2 {[%clk 0:02:42.8]} 10... a6 {[%clk 0:02:46.2]} 11. a4 {[%clk
0:02:42.1]} 11... b6 {[%clk 0:02:46.6]} 12. b3 {[%clk 0:02:41.3]} 12... Nd7
{[%clk 0:02:45.4]} 13. Bb2 {[%clk 0:02:41.4]} 13... Rb8 {[%clk 0:02:45.9]} 14.
Bd3 {[%clk 0:02:36.3]} 14... Nc7 {[%clk 0:02:39.2]} 15. h3 {[%clk 0:02:34.9]}
15... Ne5 {[%clk 0:02:30.4]} 16. Nxe5 {[%clk 0:02:34.1]} 16... Bxe5 {[%clk
0:02:31.3]} 17. f4 {[%clk 0:02:31.9]} 17... Bd4+ {[%clk 0:02:31.2]} 18. Kh1
{[%clk 0:02:31.4]} 18... Bd7 {[%clk 0:02:31.4]} 19. Ne2 {[%clk 0:02:29.6]} 19...
Bxb2 {[%clk 0:02:30.6]} 20. Qxb2 {[%clk 0:02:29.8]} 20... b5 {[%clk 0:02:31.5]}
21. axb5 {[%clk 0:02:29]} 21... axb5 {[%clk 0:02:32.4]} 22. Qc2 {[%clk
0:02:29.3]} 22... e6 {[%clk 0:02:05]} 23. Ra7 {[%clk 0:02:26.9]} 23... bxc4
{[%clk 0:01:41.3]} 24. bxc4 {[%clk 0:02:26.1]} 24... exd5 {[%clk 0:01:39.3]} 25.
exd5 {[%clk 0:02:19.2]} 25... Ra8 {[%clk 0:01:18.6]} 26. Rfa1 {[%clk 0:02:11.4]}
26... Qf6 {[%clk 0:01:18.1]} 27. R1a2 {[%clk 0:02:03.1]} 27... Rac8 {[%clk
0:00:48.2]} 28. Rb7 {[%clk 0:01:57.9]} 28... Qh4 {[%clk 0:00:26.1]} 29. Raa7
{[%clk 0:01:53.6]} 29... Bxh3 {[%clk 0:00:26.1]} 30. gxh3 {[%clk 0:01:51.1]}
30... Qxh3+ {[%clk 0:00:26.4]} 31. Kg1 {[%clk 0:01:50.7]} 31... Ne8 {[%clk
0:00:26.6]} 32. Kf2 {[%clk 0:01:41.3]} 32... Nf6 {[%clk 0:00:26.6]} 33. Ke1
{[%clk 0:01:38.1]} 33... Ng4 {[%clk 0:00:20.6]} 34. Qc3 {[%clk 0:01:28.1]} 34...
Rce8 {[%clk 0:00:20.6]} 35. Re7 {[%clk 0:01:21.3]} 35... Rxe7 {[%clk 0:00:20.8]}
36. Rxe7 {[%clk 0:01:20.7]} 36... Qh4+ {[%clk 0:00:21.3]} 37. Kd2 {[%clk
0:01:17.9]} 37... Qxe7 {[%clk 0:00:21.7]} 38. f5 {[%clk 0:01:17.9]} 38... Qe3+
{[%clk 0:00:21.6]} 39. Kc2 {[%clk 0:01:17]} 39... Ne5 {[%clk 0:00:20.4]} 40. Nc1
{[%clk 0:01:16.6]} 40... Ra8 {[%clk 0:00:19]} 41. fxg6 {[%clk 0:01:15.5]} 41...
fxg6 {[%clk 0:00:18.3]} 42. Qb3 {[%clk 0:01:15.4]} 42... Rf8 {[%clk 0:00:18]}
43. Be2 {[%clk 0:01:14.3]} 43... Qe4+ {[%clk 0:00:16.5]} 44. Kd2 {[%clk
0:01:13]} 44... Qd4+ {[%clk 0:00:15.6]} 45. Kc2 {[%clk 0:01:13.3]} 45... Rf2
{[%clk 0:00:15.2]} 46. Qb8+ {[%clk 0:01:12.8]} 46... Kg7 {[%clk 0:00:15]} 47.
Qxd6 {[%clk 0:01:10.5]} 47... Nxc4 {[%clk 0:00:09.9]} 48. Qe7+ {[%clk
0:01:01.6]} 48... Rf7 {[%clk 0:00:09.8]} 49. Qe6 {[%clk 0:00:59.6]} 49... Qb2+
{[%clk 0:00:08]} 50. Kd3 {[%clk 0:00:59.7]} 50... Qd4+ {[%clk 0:00:05.6]} 51.
Kc2 {[%clk 0:00:59.4]} 51... Ne3+ {[%clk 0:00:03.2]} 52. Kb3 {[%clk 0:00:56.1]}
52... Rb7+ {[%clk 0:00:03]} 53. Ka3 {[%clk 0:00:55.5]} 53... Qb4+ {[%clk
0:00:02.7]} 54. Ka2 {[%clk 0:00:56]} 54... Qb2# {[%clk 0:00:03.4]} 0-1

[Event "*** Titled Tuesday Blitz"]
[Site "Chess.com"]
[Date "2020.05.19"]
[Round "7"]
[White "Ariadna_Atreides"]
[Black "AEMEffi"]
[Result "0-1"]
[WhiteElo "2078"]
[BlackElo "2300"]
[TimeControl "180+1"]
[EndTime "13:20:30 PDT"]
[Termination "AEMEffi won by resignation"]

1. d4 {[%clk 0:03:00.9]} 1... Nf6 {[%clk 0:02:57]} 2. Nf3 {[%clk 0:03:00.6]}
2... g6 {[%clk 0:02:57.9]} 3. c4 {[%clk 0:03:00.2]} 3... Bg7 {[%clk 0:02:56.7]}
4. Nc3 {[%clk 0:02:59.9]} 4... d5 {[%clk 0:02:57.1]} 5. cxd5 {[%clk 0:02:59.8]}
5... Nxd5 {[%clk 0:02:58]} 6. Bd2 {[%clk 0:02:59.7]} 6... O-O {[%clk 0:02:55.4]}
7. e4 {[%clk 0:02:56.9]} 7... Nxc3 {[%clk 0:02:54.8]} 8. Bxc3 {[%clk 0:02:56.4]}
8... c5 {[%clk 0:02:55.7]} 9. d5 {[%clk 0:02:54.7]} 9... Bg4 {[%clk 0:02:49.6]}
10. Be2 {[%clk 0:02:50.8]} 10... Nd7 {[%clk 0:02:48.3]} 11. Bxg7 {[%clk
0:02:44.2]} 11... Kxg7 {[%clk 0:02:48]} 12. O-O {[%clk 0:02:45.1]} 12... Qc7
{[%clk 0:02:28.7]} 13. Rc1 {[%clk 0:02:37.9]} 13... a5 {[%clk 0:02:21.9]} 14.
Qc2 {[%clk 0:02:23]} 14... Bxf3 {[%clk 0:02:09.6]} 15. Bxf3 {[%clk 0:02:20.1]}
15... b6 {[%clk 0:02:08.1]} 16. a4 {[%clk 0:02:15.5]} 16... Qf4 {[%clk
0:01:58.3]} 17. Be2 {[%clk 0:02:06.2]} 17... h5 {[%clk 0:01:51.3]} 18. g3 {[%clk
0:02:03.6]} 18... Qf6 {[%clk 0:01:48.2]} 19. Qc3 {[%clk 0:01:59.6]} 19... h4
{[%clk 0:01:44.8]} 20. Qxf6+ {[%clk 0:01:55.2]} 20... Nxf6 {[%clk 0:01:43.5]}
21. f3 {[%clk 0:01:46.2]} 21... hxg3 {[%clk 0:01:41.8]} 22. hxg3 {[%clk
0:01:46.2]} 22... g5 {[%clk 0:01:41]} 23. Rfd1 {[%clk 0:01:36.8]} 23... Rh8
{[%clk 0:01:38.6]} 24. Kg2 {[%clk 0:01:32.3]} 24... g4 {[%clk 0:01:35.3]} 25. e5
{[%clk 0:01:29.4]} 25... gxf3+ {[%clk 0:01:35]} 26. Bxf3 {[%clk 0:01:29.4]}
26... Nd7 {[%clk 0:01:26.9]} 27. d6 {[%clk 0:01:24]} 27... Rac8 {[%clk
0:01:15.1]} 28. Bg4 {[%clk 0:00:44]} 28... e6 {[%clk 0:01:14.2]} 29. Re1 {[%clk
0:00:42.9]} 29... Rh6 {[%clk 0:01:10.7]} 30. Bf3 {[%clk 0:00:34.9]} 30... f6
{[%clk 0:00:58.8]} 31. exf6+ {[%clk 0:00:32.1]} 31... Rxf6 {[%clk 0:00:57.6]}
32. Bg4 {[%clk 0:00:29.7]} 32... Kf7 {[%clk 0:00:51.8]} 33. Re2 {[%clk
0:00:27.9]} 33... Rg8 {[%clk 0:00:51]} 34. Bf3 {[%clk 0:00:22.8]} 34... Rg5
{[%clk 0:00:39]} 35. Bc6 {[%clk 0:00:20.5]} 35... Ne5 {[%clk 0:00:38.3]} 36. d7
{[%clk 0:00:20.1]} 36... Nxc6 {[%clk 0:00:38]} 37. Rd1 {[%clk 0:00:19.1]} 37...
Ke7 {[%clk 0:00:33.4]} 38. Red2 {[%clk 0:00:16.3]} 38... Nd4 {[%clk 0:00:31.4]}
39. Rh1 {[%clk 0:00:08.7]} 39... Kxd7 {[%clk 0:00:30.2]} 40. Rh7+ {[%clk
0:00:09.3]} 40... Kc6 {[%clk 0:00:29.8]} 41. Re7 {[%clk 0:00:08.8]} 41... Rfg6
{[%clk 0:00:29.2]} 42. Rd3 {[%clk 0:00:08.5]} 42... Nf5 {[%clk 0:00:28.3]} 43.
Kf2 {[%clk 0:00:07.5]} 43... Nxe7 {[%clk 0:00:27.8]} 0-1

[Event "*** Titled Tuesday Blitz"]
[Site "Chess.com"]
[Date "2020.05.19"]
[Round "7"]
[White "WhiteCapital80"]
[Black "Witik"]
[Result "0-1"]
[WhiteElo "2438"]
[BlackElo "2629"]
[TimeControl "180+1"]
[EndTime "13:20:31 PDT"]
[Termination "Witik won by resignation"]

1. e4 {[%clk 0:03:00.9]} 1... c6 {[%clk 0:03:00]} 2. d4 {[%clk 0:03:00.8]} 2...
d5 {[%clk 0:02:59.8]} 3. Nd2 {[%clk 0:03:00.9]} 3... dxe4 {[%clk 0:03:00.1]} 4.
Nxe4 {[%clk 0:03:01.2]} 4... Nf6 {[%clk 0:03:01]} 5. Nxf6+ {[%clk 0:03:01.2]}
5... exf6 {[%clk 0:03:01.9]} 6. c3 {[%clk 0:02:59]} 6... Bd6 {[%clk 0:03:02.5]}
7. Bd3 {[%clk 0:02:59.2]} 7... O-O {[%clk 0:03:03.4]} 8. Ne2 {[%clk 0:02:59.5]}
8... Re8 {[%clk 0:03:04.3]} 9. Qc2 {[%clk 0:03:00.1]} 9... h5 {[%clk 0:03:04.8]}
10. Be3 {[%clk 0:03:00.2]} 10... Nd7 {[%clk 0:03:04.6]} 11. O-O-O {[%clk
0:02:59.7]} 11... Nf8 {[%clk 0:03:04.9]} 12. Kb1 {[%clk 0:02:59.7]} 12... Be6
{[%clk 0:03:04.2]} 13. c4 {[%clk 0:02:59.9]} 13... Rc8 {[%clk 0:02:56.6]} 14.
Nc3 {[%clk 0:02:44.4]} 14... b5 {[%clk 0:02:47.4]} 15. cxb5 {[%clk 0:02:21.2]}
15... cxb5 {[%clk 0:02:47.4]} 16. Bxb5 {[%clk 0:02:20.4]} 16... Re7 {[%clk
0:02:39.9]} 17. d5 {[%clk 0:02:15.8]} 17... Bg4 {[%clk 0:02:36.1]} 18. Rd2
{[%clk 0:02:13.3]} 18... Ng6 {[%clk 0:01:32.2]} 19. h3 {[%clk 0:02:02.2]} 19...
Bd7 {[%clk 0:01:31.3]} 20. Qa4 {[%clk 0:01:51.4]} 20... Ne5 {[%clk 0:01:27.9]}
21. Rd4 {[%clk 0:01:08.9]} 21... Bc5 {[%clk 0:01:09.8]} 22. Re4 {[%clk
0:01:03.4]} 22... Bf5 {[%clk 0:01:07.7]} 23. Ka1 {[%clk 0:01:00]} 23... Bxe4
{[%clk 0:01:06.5]} 24. Bxc5 {[%clk 0:00:50.5]} 24... Rxc5 {[%clk 0:01:04.4]} 25.
Qxe4 {[%clk 0:00:50.6]} 25... Qd6 {[%clk 0:00:40.2]} 26. Qd4 {[%clk 0:00:46.9]}
26... Rc8 {[%clk 0:00:17.6]} 27. Rd1 {[%clk 0:00:45.5]} 27... f5 {[%clk
0:00:15.7]} 28. f4 {[%clk 0:00:37]} 28... Ng6 {[%clk 0:00:14.9]} 29. g3 {[%clk
0:00:34.7]} 29... h4 {[%clk 0:00:15.4]} 30. Bd3 {[%clk 0:00:34.8]} 30... hxg3
{[%clk 0:00:15.2]} 31. Bxf5 {[%clk 0:00:34.8]} 31... Rd8 {[%clk 0:00:14.6]} 32.
Ne4 {[%clk 0:00:32]} 32... Qxf4 {[%clk 0:00:13]} 33. Bxg6 {[%clk 0:00:32.3]}
33... fxg6 {[%clk 0:00:12.3]} 34. Re1 {[%clk 0:00:29.3]} 34... g2 {[%clk
0:00:11.2]} 35. d6 {[%clk 0:00:27.3]} 35... Rxe4 {[%clk 0:00:10.5]} 36. Qd5+
{[%clk 0:00:27]} 36... Kh7 {[%clk 0:00:08.9]} 37. Rb1 {[%clk 0:00:26.9]} 37...
Rxd6 {[%clk 0:00:07.3]} 38. Qa8 {[%clk 0:00:25.9]} 38... Rd2 {[%clk 0:00:06.8]}
39. Qxa7 {[%clk 0:00:25.1]} 39... Ree2 {[%clk 0:00:05.9]} 40. Qg1 {[%clk
0:00:24.4]} 40... Qe5 {[%clk 0:00:06.2]} 41. Qc1 {[%clk 0:00:23.8]} 41... Rxb2
{[%clk 0:00:05.9]} 0-1

[Event "*** Titled Tuesday Blitz"]
[Site "Chess.com"]
[Date "2020.05.19"]
[Round "7"]
[White "VojtechPlat"]
[Black "MITerryble"]
[Result "0-1"]
[WhiteElo "2888"]
[BlackElo "2863"]
[TimeControl "180+1"]
[EndTime "13:20:32 PDT"]
[Termination "MITerryble won by resignation"]

1. d4 {[%clk 0:03:00.9]} 1... e6 {[%clk 0:03:00.3]} 2. Nf3 {[%clk 0:03:00.9]}
2... Nf6 {[%clk 0:03:00.4]} 3. e3 {[%clk 0:03:00.9]} 3... b6 {[%clk 0:02:59.9]}
4. c4 {[%clk 0:03:00.6]} 4... Bb7 {[%clk 0:03:00.8]} 5. Bd3 {[%clk 0:03:00.6]}
5... Bb4+ {[%clk 0:03:01.2]} 6. Nbd2 {[%clk 0:02:59.7]} 6... O-O {[%clk
0:03:00.7]} 7. O-O {[%clk 0:02:55.4]} 7... a5 {[%clk 0:03:00.7]} 8. Re1 {[%clk
0:02:52.6]} 8... d6 {[%clk 0:02:58.9]} 9. Qc2 {[%clk 0:02:49.3]} 9... Bxf3
{[%clk 0:02:54.4]} 10. gxf3 {[%clk 0:02:47.8]} 10... Nbd7 {[%clk 0:02:54.3]} 11.
a3 {[%clk 0:02:39.2]} 11... Bxd2 {[%clk 0:02:54.2]} 12. Bxd2 {[%clk 0:02:39.3]}
12... e5 {[%clk 0:02:48.5]} 13. Bc3 {[%clk 0:02:38.3]} 13... Re8 {[%clk
0:02:43.8]} 14. Kh1 {[%clk 0:02:34.8]} 14... Qe7 {[%clk 0:02:43.2]} 15. Rg1
{[%clk 0:02:26.3]} 15... g6 {[%clk 0:02:23.3]} 16. Bf5 {[%clk 0:02:06.1]} 16...
exd4 {[%clk 0:01:30.3]} 17. Bxd4 {[%clk 0:01:27.3]} 17... Ne5 {[%clk 0:01:28.5]}
18. Rg3 {[%clk 0:01:25.5]} 18... c5 {[%clk 0:01:08.1]} 19. Bc3 {[%clk
0:01:22.3]} 19... Kf8 {[%clk 0:00:58.7]} 20. Bd3 {[%clk 0:01:18]} 20... Nh5
{[%clk 0:00:54.5]} 21. Rh3 {[%clk 0:01:16.1]} 21... Qe6 {[%clk 0:00:53.1]} 22.
Bf1 {[%clk 0:01:07.8]} 22... Rad8 {[%clk 0:00:37.5]} 23. f4 {[%clk 0:01:06]}
23... Ng4 {[%clk 0:00:37.3]} 24. Bg2 {[%clk 0:00:59.5]} 24... Kg8 {[%clk
0:00:18]} 25. f5 {[%clk 0:00:52.2]} 25... Qxc4 {[%clk 0:00:14.8]} 26. fxg6
{[%clk 0:00:50.5]} 26... hxg6 {[%clk 0:00:15.7]} 27. Rg1 {[%clk 0:00:41.3]}
27... Qd3 {[%clk 0:00:13.9]} 28. Rc1 {[%clk 0:00:18.6]} 28... Qxc2 {[%clk
0:00:14.1]} 29. Rxc2 {[%clk 0:00:18.8]} 29... d5 {[%clk 0:00:14.6]} 30. Bf3
{[%clk 0:00:18.2]} 30... Ngf6 {[%clk 0:00:13.5]} 31. Rc1 {[%clk 0:00:18]} 31...
d4 {[%clk 0:00:13.6]} 32. exd4 {[%clk 0:00:18.2]} 32... cxd4 {[%clk 0:00:14.2]}
33. Bd2 {[%clk 0:00:18.5]} 33... Ne4 {[%clk 0:00:12.8]} 34. Be1 {[%clk
0:00:15.9]} 34... Ng5 {[%clk 0:00:12]} 35. Rxh5 {[%clk 0:00:13.2]} 35... Nxf3
{[%clk 0:00:12.3]} 0-1